bitfinex-derivatives/quotes_BTCF0:USTF0_20240829
["timestamp","ask_amount","ask_price","bid_price","bid_amount"]
[1724938033903,1.5267,60247.0,60246.0,0.01024894]
[1724938034108,1.60967,60247.0,60246.0,0.01024894]
[1724938034317,2.20967,60247.0,60246.0,9.4e-07]
[1724938035212,1.60967,60247.0,60246.0,9.4e-07]
[1724938035424,1.11171,60247.0,60246.0,9.4e-07]
[1724938035613,0.081972,60246.0,60238.0,0.082983]
[1724938035814,0.5,60245.0,60236.0,0.14184]
[1724938036117,0.37004894,60247.0,60246.0,0.082972]
[1724938036515,0.217028,60245.0,60241.0,0.0711]
[1724938036919,0.217028,60245.0,60244.0,0.082975]
[1724938038116,0.219028,60245.0,60242.0,0.0757]
[1724938038619,0.219028,60245.0,60243.0,0.082976]
[1724938039322,0.223028,60245.0,60243.0,0.082976]
[1724938039719,0.226028,60245.0,60243.0,0.082976]
[1724938040115,0.227028,60245.0,60243.0,0.082976]
[1724938040315,0.226028,60245.0,60243.0,0.082976]
[1724938040923,0.226028,60245.0,60244.0,0.082975]
[1724938041114,0.226028,60245.0,60244.0,0.16595]
[1724938041419,0.226028,60245.0,60244.0,1.180935]
[1724938042014,0.226028,60245.0,60244.0,0.580935]
[1724938042319,0.226028,60245.0,60244.0,0.082975]
[1724938042320,0.228028,60245.0,60244.0,0.082975]
[1724938043126,0.224028,60245.0,60244.0,0.082975]
[1724938043319,0.229028,60245.0,60244.0,0.082975]
[1724938045217,0.229028,60245.0,60242.0,0.46073283]
[1724938045414,0.082976,60244.0,60242.0,0.45989283]
[1724938045620,0.082976,60244.0,60242.0,0.52583283]
[1724938046325,0.227028,60245.0,60244.0,0.082975]
[1724938047019,0.224028,60245.0,60244.0,0.082975]
[1724938047619,0.225028,60245.0,60244.0,0.082975]
[1724938048223,0.218028,60245.0,60244.0,0.082975]
[1724938049122,0.225028,60245.0,60244.0,0.082975]
[1724938049329,0.229028,60245.0,60244.0,0.082975]
[1724938049921,0.227028,60245.0,60244.0,0.082975]
[1724938050323,0.222028,60245.0,60244.0,0.082975]
[1724938050630,0.226028,60245.0,60244.0,0.082975]
[1724938051028,0.222028,60245.0,60244.0,0.082975]
[1724938051331,0.226028,60245.0,60244.0,0.082975]
[1724938052428,0.221028,60245.0,60244.0,0.082975]
[1724938052625,0.224028,60245.0,60244.0,0.082975]
[1724938052825,0.228028,60245.0,60244.0,0.082975]
[1724938053330,0.229028,60245.0,60244.0,0.082975]
[1724938053722,0.229028,60245.0,60244.0,0.248925]
[1724938053923,0.229028,60245.0,60244.0,1.346885]
[1724938054225,0.5,60263.0,60254.0,0.082961]
[1724938054531,0.082952,60261.0,60256.0,0.082957]
[1724938054723,0.5,60260.0,60254.0,0.3608]
[1724938054927,0.5,60261.0,60254.0,0.3608]
[1724938055122,0.5,60261.0,60259.0,0.082954]
[1724938055520,0.5,60261.0,60260.0,0.443753]
[1724938055923,0.50024894,60264.0,60263.0,0.082948]
[1724938056123,0.5,60263.0,60260.0,0.3608]
[1724938056324,0.5,60262.0,60261.0,0.08295]
[1724938056532,0.00024894,60264.0,60261.0,0.08295]
[1724938057228,0.01424894,60264.0,60263.0,0.001]
[1724938057433,0.51424894,60264.0,60263.0,0.001]
[1724938057631,0.01424894,60264.0,60263.0,0.001]
[1724938058031,0.02024894,60264.0,60263.0,0.001]
[1724938059036,0.01324894,60264.0,60262.0,0.08295]
[1724938060130,0.01324894,60264.0,60261.0,0.002]
[1724938060331,0.01524894,60264.0,60263.0,0.001]
[1724938060532,0.01824894,60264.0,60263.0,0.001]
[1724938061231,0.10019594,60264.0,60263.0,0.001]
[1724938061832,0.00924894,60264.0,60263.0,0.001]
[1724938062030,0.09219594,60264.0,60263.0,0.001]
[1724938062230,0.10019594,60264.0,60263.0,0.001]
[1724938062633,0.54394294,60264.0,60263.0,0.001]
[1724938063132,0.54494294,60264.0,60263.0,0.002]
[1724938064133,0.53594294,60264.0,60263.0,0.001]
[1724938064336,0.53594294,60264.0,60263.0,0.002]
[1724938064337,0.54494294,60264.0,60263.0,0.002]
[1724938064531,1.04494294,60264.0,60263.0,0.002]
[1724938064835,1.04794294,60264.0,60263.0,0.002]
[1724938065340,1.03594294,60264.0,60263.0,0.001]
[1724938065536,1.05494294,60264.0,60263.0,0.002]
[1724938066030,1.04094294,60264.0,60263.0,0.001]
[1724938066233,1.05494294,60264.0,60263.0,0.002]
[1724938067741,1.04094294,60264.0,60263.0,0.001]
[1724938067935,1.05494294,60264.0,60263.0,0.001]
[1724938068332,1.04094294,60264.0,60263.0,0.001]
[1724938068527,1.05394294,60264.0,60263.0,0.001]
[1724938069035,0.081951,60261.0,60260.0,0.02365875]
[1724938069238,0.97199594,60264.0,60259.0,0.222754]
[1724938069239,0.082953,60260.0,60259.0,0.222754]
[1724938069938,0.081953,60260.0,60259.0,0.24659005]
[1724938070439,0.082964,60252.0,60249.0,0.1398]
[1724938070636,0.082964,60252.0,60236.0,0.082985]
[1724938070637,0.608692,60252.0,60241.0,0.082979]
[1724938070840,1.108692,60252.0,60242.0,0.082977]
[1724938071135,1.108692,60252.0,60238.0,0.1398]
[1724938071136,1.107692,60252.0,60238.0,0.1398]
[1724938071355,0.3608,60246.0,60243.0,0.082975]
[1724938071729,0.5,60245.0,60243.0,0.082975]
[1724938071928,0.5739,60245.0,60243.0,0.082975]
[1724938072142,0.082975,60244.0,60243.0,0.082975]
[1724938072331,0.580975,60244.0,60243.0,0.082975]
[1724938072531,0.580975,60244.0,60238.0,0.02433089]
[1724938072532,0.5,60244.0,60238.0,0.02433089]
[1724938072735,0.082977,60243.0,60235.0,0.86964]
[1724938072941,0.5,60242.0,60240.0,0.082979]
[1724938073130,0.3608,60241.0,60235.0,0.02373861]
[1724938073341,0.3598,60241.0,60235.0,0.3608]
[1724938073636,0.3598,60241.0,60235.0,0.6508]
[1724938073939,0.3598,60241.0,60237.0,0.082983]
[1724938074342,0.584055,60244.0,60238.0,0.082983]
[1724938074640,0.584055,60244.0,60239.0,0.1462]
[1724938074641,0.586975,60244.0,60239.0,0.1462]
[1724938075034,0.582975,60244.0,60239.0,0.1462]
[1724938076341,0.583975,60244.0,60239.0,0.1462]
[1724938076543,0.501,60244.0,60239.0,0.1462]
[1724938076731,0.082978,60242.0,60239.0,0.1462]
[1724938076930,0.501,60244.0,60239.0,0.1462]
[1724938077637,0.583975,60244.0,60239.0,0.1462]
[1724938077840,0.082978,60242.0,60239.0,0.1462]
[1724938078335,0.501,60244.0,60235.0,0.443786]
[1724938078336,0.082979,60241.0,60235.0,0.443786]
[1724938078736,0.082979,60241.0,60236.0,0.082986]
[1724938079542,0.001,60242.0,60235.0,0.02720606]
[1724938079750,0.5,60244.0,60235.0,0.02920606]
[1724938079950,0.08298,60240.0,60235.0,0.11219306]
[1724938080339,0.5,60244.0,60243.0,0.082976]
[1724938080650,0.0039,60255.0,60249.0,0.082968]
[1724938080947,0.0039,60261.0,60249.0,1.333768]
[1724938081247,0.0039,60261.0,60249.0,1.831688]
[1724938081643,0.0039,60261.0,60249.0,1.914656]
[1724938081853,0.01224894,60250.0,60249.0,1.914656]
[1724938082253,0.0039,60261.0,60260.0,0.082953]
[1724938082548,0.0039,60272.0,60260.0,0.79064]
[1724938082741,0.5,60271.0,60264.0,0.082947]
[1724938083048,0.082936,60272.0,60266.0,0.082944]
[1724938083349,0.082938,60271.0,60263.0,0.00024894]
[1724938083848,0.082938,60271.0,60266.0,0.3608]
[1724938084036,0.5,60274.0,60266.0,0.6508]
[1724938084235,0.08318094,60275.0,60266.0,0.6508]
[1724938084644,0.00024894,60275.0,60273.0,0.082934]
[1724938084856,0.00024894,60275.0,60266.0,0.6508]
[1724938084857,0.00024894,60275.0,60274.0,0.443733]
[1724938085851,0.00624894,60275.0,60274.0,0.443733]
[1724938086850,0.02024894,60275.0,60274.0,0.443733]
[1724938087246,0.01424894,60275.0,60274.0,0.443733]
[1724938087554,0.02124894,60275.0,60274.0,0.584533]
[1724938088458,0.02124894,60275.0,60274.0,0.444733]
[1724938088646,0.02124894,60275.0,60274.0,0.584533]
[1724938089042,0.02124894,60275.0,60274.0,0.444733]
[1724938089250,0.02124894,60275.0,60274.0,0.584533]
[1724938089752,0.02124894,60275.0,60274.0,0.444733]
[1724938089949,0.02124894,60275.0,60274.0,0.60836541]
[1724938092650,0.02124894,60275.0,60274.0,0.24780541]
[1724938093847,0.10418094,60275.0,60274.0,0.02483241]
[1724938094053,0.101932,60275.0,60274.0,0.16487241]
[1724938094951,0.019,60275.0,60274.0,0.24780541]
[1724938095849,0.019,60275.0,60274.0,0.74552541]
[1724938096862,0.019,60275.0,60274.0,0.24780541]
[1724938097051,0.019,60275.0,60274.0,0.02483241]
[1724938097252,0.082936,60272.0,60271.0,0.14004]
[1724938097455,0.5,60271.0,60263.0,0.14028894]
[1724938097649,0.082939,60270.0,60263.0,0.16397797]
[1724938097855,0.3608,60270.0,60263.0,0.16397797]
[1724938098067,0.082944,60266.0,60263.0,0.02393797]
[1724938098257,0.082944,60266.0,60264.0,0.14004]
[1724938098456,0.081944,60266.0,60264.0,0.14004]
[1724938098757,0.58294,60269.0,60264.0,0.14004]
[1724938098959,0.082944,60267.0,60264.0,0.222987]
[1724938099355,0.442746,60265.0,60264.0,0.14004]
[1724938099666,0.082949,60263.0,60252.0,0.16604]
[1724938099849,0.082954,60259.0,60252.0,0.16604]
[1724938100159,0.082959,60255.0,60252.0,0.16604]
[1724938100460,0.081959,60255.0,60252.0,0.16604]
[1724938100663,0.081959,60255.0,60252.0,0.19035572]
[1724938100864,0.080959,60255.0,60252.0,0.19035572]
[1724938101157,0.168909,60259.0,60252.0,0.19035572]
[1724938101373,0.168909,60259.0,60255.0,0.3608]
[1724938101374,0.003,60259.0,60255.0,0.3608]
[1724938101657,0.082959,60256.0,60252.0,0.27331972]
[1724938102161,0.003,60255.0,60252.0,0.27331972]
[1724938102551,0.082959,60256.0,60255.0,0.001]
[1724938103863,0.089959,60256.0,60255.0,0.002]
[1724938104754,0.089959,60256.0,60255.0,0.001]
[1724938105462,0.095959,60256.0,60255.0,0.002]
[1724938105657,0.595959,60256.0,60255.0,0.002]
[1724938105860,0.095959,60256.0,60255.0,0.002]
[1724938106052,0.595959,60256.0,60255.0,0.002]
[1724938107659,0.013,60256.0,60255.0,0.084959]
[1724938107867,0.013,60256.0,60255.0,0.735759]
[1724938110258,0.013,60256.0,60255.0,1.233639]
[1724938111557,0.013,60256.0,60255.0,0.872839]
[1724938111765,0.013,60256.0,60255.0,1.233639]
[1724938114260,0.013,60256.0,60255.0,0.735759]
[1724938118067,0.013,60256.0,60255.0,1.316598]
[1724938118371,0.00024894,60260.0,60259.0,0.165908]
[1724938118858,0.00024894,60260.0,60259.0,0.663748]
[1724938119060,0.00024894,60260.0,60259.0,0.580794]
[1724938119764,0.0039,60271.0,60259.0,1.09784]
[1724938119964,0.3647,60274.0,60272.0,0.082935]
[1724938120169,0.3608,60274.0,60272.0,0.222975]
[1724938120673,0.3608,60274.0,60273.0,0.222975]
[1724938120863,0.582929,60278.0,60273.0,0.222975]
[1724938121461,0.082929,60278.0,60274.0,0.082932]
[1724938122171,0.082929,60277.0,60274.0,0.082932]
[1724938122766,0.082929,60277.0,60274.0,0.083932]
[1724938122972,0.082929,60277.0,60274.0,0.084932]
[1724938123565,0.007,60278.0,60277.0,0.082929]
[1724938124082,0.36104894,60280.0,60279.0,0.082926]
[1724938125771,0.36104894,60280.0,60279.0,0.083926]
[1724938125977,0.36604894,60280.0,60279.0,0.083926]
[1724938126579,0.44897394,60280.0,60279.0,0.001]
[1724938126769,0.54389894,60280.0,60279.0,0.002]
[1724938129169,0.54389894,60280.0,60273.0,0.02409304]
[1724938129170,0.082933,60274.0,60273.0,0.02409304]
[1724938129369,0.082933,60274.0,60271.0,0.221697]
[1724938129370,0.082936,60272.0,60271.0,0.221697]
[1724938131073,0.080936,60272.0,60271.0,0.221697]
[1724938131390,0.0673,60273.0,60272.0,0.082936]
[1724938132376,0.013,60274.0,60271.0,0.16349271]
[1724938132377,0.013,60274.0,60273.0,0.082935]
[1724938132579,0.582926,60279.0,60273.0,0.082935]
[1724938132880,0.582926,60279.0,60274.0,0.082933]
[1724938133074,0.5,60279.0,60277.0,0.3608]
[1724938133276,0.00024894,60280.0,60277.0,0.443728]
[1724938133277,0.58317394,60280.0,60277.0,0.443728]
[1724938133471,0.50024894,60280.0,60278.0,0.082928]
[1724938133873,0.00024894,60280.0,60279.0,0.082926]
[1724938134872,0.00724894,60280.0,60279.0,0.082926]
[1724938135273,0.00024894,60280.0,60279.0,0.082926]
[1724938135476,0.00724894,60280.0,60279.0,0.083926]
[1724938135686,0.00724894,60280.0,60279.0,0.001]
[1724938136185,0.02124894,60280.0,60279.0,0.002]
[1724938138088,0.10417394,60280.0,60279.0,0.002]
[1724938143193,0.02124894,60280.0,60279.0,0.002]
[1724938143690,0.10417394,60280.0,60279.0,0.002]
[1724938145594,0.02124894,60280.0,60279.0,0.002]
[1724938146992,0.02124894,60280.0,60279.0,0.374926]
[1724938149489,0.02124894,60280.0,60279.0,0.735726]
[1724938150094,0.02124894,60280.0,60279.0,0.374926]
[1724938151196,0.02124894,60280.0,60279.0,0.457852]
[1724938152188,0.02124894,60280.0,60279.0,0.540778]
[1724938152396,0.5,60290.0,60289.0,0.082913]
[1724938152895,0.5,60295.0,60292.0,0.082908]
[1724938153987,0.5,60295.0,60288.0,0.29]
[1724938153988,0.5,60295.0,60288.0,0.213908]
[1724938154189,0.5,60295.0,60291.0,0.082909]
[1724938154388,0.5,60295.0,60292.0,0.082908]
[1724938155195,0.583904,60295.0,60292.0,0.083908]
[1724938155885,0.083904,60295.0,60292.0,0.083908]
[1724938156091,0.083904,60295.0,60294.0,0.372906]
[1724938156092,0.001,60295.0,60294.0,0.372906]
[1724938157498,0.001,60295.0,60292.0,0.001]
[1724938157993,0.001,60295.0,60292.0,0.002]
[1724938158194,0.3608,60296.0,60294.0,0.082906]
[1724938158498,0.002,60295.0,60294.0,0.083906]
[1724938158889,0.002,60295.0,60294.0,0.166812]
[1724938159193,0.00024894,60300.0,60299.0,0.082899]
[1724938159701,0.00024894,60300.0,60294.0,0.083905]
[1724938159894,0.082902,60297.0,60296.0,0.13868]
[1724938161600,0.081902,60297.0,60296.0,0.13868]
[1724938162102,0.081902,60297.0,60296.0,0.16273524]
[1724938162299,0.081902,60297.0,60296.0,0.16373524]
[1724938162496,0.081902,60297.0,60296.0,0.02505524]
[1724938162705,0.084902,60297.0,60296.0,0.02605524]
[1724938163296,0.445702,60297.0,60296.0,0.02605524]
[1724938163604,0.003,60297.0,60296.0,0.10895824]
[1724938164107,0.085902,60297.0,60296.0,0.10895824]
[1724938164293,0.003,60297.0,60296.0,0.10895824]
[1724938167102,0.003,60297.0,60296.0,0.46975824]
[1724938167710,0.003,60297.0,60296.0,0.10895824]
[1724938168316,0.003,60297.0,60296.0,0.46975824]
[1724938170299,0.003,60297.0,60296.0,0.55266124]
[1724938170499,0.003,60297.0,60296.0,0.46975824]
[1724938174106,0.003,60297.0,60296.0,0.57975824]
[1724938177417,0.00024894,60300.0,60299.0,0.165798]
[1724938177601,0.00024894,60300.0,60299.0,0.275798]
[1724938178107,0.00024894,60300.0,60299.0,0.082899]
[1724938178301,0.00024894,60300.0,60299.0,0.11]
[1724938178501,0.14184694,60300.0,60299.0,0.11]
[1724938178705,0.14384694,60300.0,60299.0,0.24964]
[1724938178907,0.06094894,60300.0,60299.0,0.24964]
[1724938179316,0.14484694,60300.0,60299.0,0.25064]
[1724938179612,0.06194894,60300.0,60299.0,0.25064]
[1724938180116,0.14484694,60300.0,60299.0,0.25064]
[1724938180412,0.14484694,60300.0,60299.0,0.112]
[1724938186924,1.40816294,60300.0,60299.0,0.002]
[1724938187127,0.082913,60289.0,60288.0,0.3608]
[1724938187817,0.5,60294.0,60288.0,0.74532215]
[1724938188023,0.5,60294.0,60293.0,0.443707]
[1724938188322,0.082904,60296.0,60293.0,0.443707]
[1724938188520,0.082904,60296.0,60295.0,0.11]
[1724938188731,0.082906,60294.0,60293.0,0.00084]
[1724938188934,0.082913,60289.0,60288.0,0.02372215]
[1724938189229,0.082913,60289.0,60287.0,0.00024894]
[1724938189230,0.582914,60288.0,60287.0,0.00024894]
[1724938189417,0.701614,60288.0,60287.0,0.00024894]
[1724938189820,0.701614,60288.0,60287.0,0.11024894]
[1724938190221,0.700614,60288.0,60287.0,0.11024894]
[1724938190514,0.702614,60288.0,60287.0,0.13382398]
[1724938191936,0.703614,60288.0,60287.0,0.02382398]
[1724938192135,0.703614,60288.0,60287.0,0.13382398]
[1724938193235,0.503,60288.0,60287.0,0.13382398]
[1724938193446,0.003,60288.0,60287.0,0.21673898]
[1724938198742,0.50024894,60300.0,60296.0,0.082902]
[1724938198938,0.00024894,60300.0,60298.0,0.11]
[1724938199138,0.50024894,60300.0,60298.0,0.11]
[1724938199855,0.001,60299.0,60298.0,0.11]
[1724938200141,0.003,60299.0,60297.0,0.221501]
[1724938200543,0.001,60299.0,60297.0,0.221501]
[1724938200745,0.001,60299.0,60298.0,0.0839]
[1724938200942,0.001,60299.0,60298.0,0.001]
[1724938201245,0.001,60299.0,60298.0,0.1396]
[1724938201435,0.08314694,60300.0,60298.0,0.1386]
[1724938201745,0.002,60299.0,60298.0,0.2225]
[1724938202050,0.00024894,60300.0,60299.0,0.082899]
[1724938202243,0.0039,60309.0,60308.0,0.082887]
[1724938202442,0.5,60318.0,60308.0,0.3608]
[1724938202744,0.3608,60315.0,60308.0,0.3608]
[1724938203138,0.082881,60312.0,60309.0,0.1386]
[1724938203340,0.3608,60315.0,60309.0,0.1386]
[1724938203636,0.443677,60315.0,60309.0,0.1386]
[1724938204147,0.443677,60315.0,60308.0,0.46867746]
[1724938204148,0.3608,60315.0,60308.0,0.46867746]
[1724938204347,0.3608,60315.0,60310.0,0.1386]
[1724938205352,0.8608,60315.0,60310.0,0.1386]
[1724938205549,0.8608,60315.0,60310.0,0.1396]
[1724938205742,0.165764,60311.0,60310.0,0.001]
[1724938205944,0.165768,60310.0,60309.0,0.001]
[1724938206249,0.5,60312.0,60286.0,0.1194]
[1724938206250,0.165804,60297.0,60286.0,0.1194]
[1724938206545,0.5,60296.0,60289.0,0.082911]
[1724938206749,0.082911,60291.0,60289.0,0.082911]
[1724938206949,0.5,60290.0,60289.0,0.082911]
[1724938207142,0.499,60295.0,60294.0,0.082906]
[1724938207348,0.06164872,60296.0,60289.0,0.29]
[1724938207647,0.00024872,60296.0,60294.0,0.082905]
[1724938207848,0.00024872,60296.0,60286.0,0.28212411]
[1724938207849,0.00024872,60296.0,60295.0,0.372904]
[1724938208153,0.5,60301.0,60295.0,0.372904]
[1724938208154,0.49924872,60300.0,60296.0,0.082902]
[1724938208748,0.49924872,60300.0,60295.0,0.29]
[1724938208958,0.5,60299.0,60298.0,0.082899]
[1724938209154,0.082893,60304.0,60295.0,0.291]
[1724938209155,0.5,60303.0,60295.0,0.6518]
[1724938209351,0.00024872,60305.0,60302.0,0.3608]
[1724938209555,0.00024872,60305.0,60303.0,0.1386]
[1724938209748,0.082892,60304.0,60303.0,0.1386]
[1724938210145,0.00024872,60305.0,60303.0,0.1386]
[1724938210349,0.00024872,60305.0,60303.0,0.0574]
[1724938210551,0.00024872,60305.0,60296.0,0.001]
[1724938210754,0.3608,60303.0,60302.0,0.001]
[1724938211063,0.443693,60303.0,60302.0,0.001]
[1724938211245,0.082897,60301.0,60297.0,0.1386]
[1724938211444,0.061,60304.0,60296.0,0.02483942]
[1724938211445,0.3598,60298.0,60296.0,0.02483942]
[1724938211657,0.061,60304.0,60298.0,0.1386]
[1724938211658,0.082899,60299.0,60298.0,0.1386]
[1724938211961,0.082907,60293.0,60292.0,0.13876872]
[1724938212554,0.665814,60293.0,60292.0,0.13876872]
[1724938212855,0.665814,60293.0,60268.0,0.13852]
[1724938212856,0.082934,60274.0,60268.0,0.13852]
[1724938213249,0.44371,60291.0,60256.0,0.02325814]
[1724938213250,0.08294,60269.0,60256.0,0.02325814]
[1724938213446,0.082949,60263.0,60255.0,0.082959]
[1724938213653,0.082943,60267.0,60258.0,0.082955]
[1724938213853,0.3608,60265.0,60258.0,0.082955]
[1724938214155,0.3608,60262.0,60256.0,0.36104872]
[1724938214358,0.499,60267.0,60256.0,0.36104872]
[1724938214550,0.499,60267.0,60262.0,0.3608]
[1724938214753,0.498,60267.0,60262.0,0.3608]
[1724938214953,0.00024872,60269.0,60263.0,0.29]
[1724938215154,0.00024872,60269.0,60268.0,0.29]
[1724938215357,0.00024872,60269.0,60268.0,0.42852]
[1724938215659,0.00024872,60269.0,60268.0,0.13852]
[1724938217563,0.00024872,60269.0,60266.0,0.02316314]
[1724938217759,0.00024872,60269.0,60268.0,0.001]
[1724938217760,0.08318872,60269.0,60268.0,0.001]
[1724938217954,0.09618872,60269.0,60268.0,0.001]
[1724938218560,0.10818872,60269.0,60268.0,0.002]
[1724938218767,0.10818872,60269.0,60249.0,0.06]
[1724938218768,0.52524872,60269.0,60249.0,0.06]
[1724938218960,0.3608,60261.0,60254.0,0.13856]
[1724938219157,0.082957,60257.0,60255.0,0.02341228]
[1724938219358,0.082957,60257.0,60254.0,0.13856]
[1724938220253,0.082957,60257.0,60253.0,0.02369235]
[1724938220458,0.5,60256.0,60249.0,0.13856]
[1724938220660,0.082955,60259.0,60249.0,0.13856]
[1724938220661,0.3608,60251.0,60249.0,0.13856]
[1724938221067,0.3598,60251.0,60249.0,0.13856]
[1724938221269,0.5,60252.0,60250.0,0.082966]
[1724938221564,0.082958,60256.0,60249.0,0.009]
[1724938221565,0.3608,60254.0,60249.0,0.009]
[1724938221773,0.082965,60251.0,60249.0,0.009]
[1724938222069,0.083965,60251.0,60249.0,0.009]
[1724938222264,0.084965,60251.0,60249.0,0.009]
[1724938222670,0.001,60251.0,60249.0,0.009]
[1724938223871,0.001,60251.0,60250.0,0.443766]
[1724938224356,0.001,60251.0,60250.0,1.541686]
[1724938224959,0.001,60251.0,60250.0,1.624652]
[1724938225165,0.00024894,60257.0,60256.0,0.165916]
[1724938225475,0.5,60270.0,60256.0,0.85868]
[1724938225767,0.5,60270.0,60256.0,0.3608]
[1724938225768,0.3608,60268.0,60256.0,0.3608]
[1724938225963,0.08295,60262.0,60257.0,0.1386]
[1724938226464,0.08319394,60266.0,60258.0,0.082955]
[1724938226767,0.582947,60265.0,60258.0,0.082955]
[1724938226962,0.50024894,60266.0,60258.0,0.082955]
[1724938227158,0.082949,60263.0,60257.0,0.1386]
[1724938227774,0.082952,60261.0,60258.0,0.1386]
[1724938227960,0.082949,60263.0,60258.0,0.1386]
[1724938228165,0.5,60262.0,60258.0,0.1386]
[1724938228470,0.5,60262.0,60256.0,0.46797057]
[1724938228773,0.5,60262.0,60257.0,0.1386]
[1724938228969,0.003,60261.0,60257.0,0.1386]
[1724938229266,0.082956,60258.0,60256.0,0.02421257]
[1724938229466,0.082956,60258.0,60257.0,0.1386]
[1724938229672,0.082956,60258.0,60252.0,0.082963]
[1724938229858,0.3608,60260.0,60254.0,0.08296]
[1724938230167,0.001,60261.0,60260.0,0.082953]
[1724938230366,0.5,60274.0,60260.0,0.6]
[1724938230565,0.3608,60282.0,60273.0,0.7208]
[1724938230763,0.082936,60273.0,60267.0,0.3608]
[1724938230965,0.082935,60273.0,60268.0,0.1386]
[1724938231171,0.082937,60272.0,60268.0,0.1386]
[1724938231359,0.082942,60268.0,60267.0,0.00084]
[1724938231671,0.5,60270.0,60266.0,0.1386]
[1724938231867,0.082943,60267.0,60266.0,0.1386]
[1724938232169,0.079943,60267.0,60266.0,0.1386]
[1724938232681,0.5,60270.0,60266.0,0.1386]
[1724938232870,0.082941,60269.0,60266.0,0.1396]
[1724938233466,0.51,60270.0,60266.0,0.1406]
[1724938233467,0.006,60267.0,60266.0,0.1406]
[1724938233667,0.006,60267.0,60266.0,0.223544]
[1724938233865,0.01,60270.0,60266.0,1.5992]
[1724938234068,0.00024894,60276.0,60275.0,0.082932]
[1724938234272,0.00024894,60276.0,60275.0,0.443732]
[1724938234476,0.5,60290.0,60275.0,1.45852]
[1724938234772,0.5,60296.0,60289.0,0.443713]
[1724938235071,0.5,60296.0,60290.0,0.1386]
[1724938235264,0.5,60296.0,60288.0,0.3608]
[1724938235467,0.5,60296.0,60289.0,0.1386]
[1724938235661,0.5,60296.0,60288.0,0.3608]
[1724938235662,0.582903,60296.0,60288.0,0.3608]
[1724938235972,0.3608,60292.0,60286.0,0.02435589]
[1724938236266,0.443715,60287.0,60286.0,0.00024894]
[1724938236665,0.943715,60287.0,60286.0,0.00024894]
[1724938237869,0.942715,60287.0,60286.0,0.00024894]
[1724938238174,0.942715,60287.0,60286.0,0.00124894]
[1724938238373,0.5,60287.0,60286.0,0.37416594]
[1724938238568,0.008,60287.0,60286.0,0.73596594]
[1724938238764,0.008,60287.0,60286.0,1.33596594]
[1724938238966,0.00414894,60298.0,60286.0,1.74968894]
[1724938239169,0.00024894,60298.0,60297.0,0.29]
[1724938239371,0.00024894,60298.0,60297.0,0.4286]
[1724938239672,0.00024894,60298.0,60293.0,0.0615]
[1724938240069,0.00024894,60298.0,60294.0,0.1386]
[1724938241073,0.50024894,60298.0,60292.0,0.1394]
[1724938241276,0.443707,60293.0,60292.0,0.13856]
[1724938241462,0.082914,60288.0,60287.0,0.1416]
[1724938241871,0.442714,60288.0,60287.0,0.1416]
[1724938242265,0.441714,60288.0,60286.0,0.00024894]
[1724938242484,0.3608,60288.0,60287.0,0.442915]
[1724938242775,0.00024894,60298.0,60287.0,1.2184]
[1724938242972,0.00024894,60298.0,60296.0,0.082903]
[1724938243172,0.00024894,60298.0,60295.0,0.36]
[1724938243173,0.00024894,60298.0,60297.0,0.082902]
[1724938243570,0.00024894,60298.0,60287.0,0.3628]
[1724938243768,0.00024894,60298.0,60288.0,0.1416]
[1724938243769,0.08291,60292.0,60288.0,0.1416]
[1724938243961,0.08291,60291.0,60288.0,0.1416]
[1724938244370,0.082912,60290.0,60288.0,0.1416]
[1724938244567,0.082914,60288.0,60287.0,0.002]
[1724938245177,0.082914,60288.0,60287.0,0.001]
[1724938245375,0.4241,60289.0,60287.0,0.001]
[1724938245577,0.01,60288.0,60287.0,0.001]
[1724938245876,0.01,60288.0,60287.0,0.002]
[1724938246467,0.092914,60288.0,60287.0,0.002]
[1724938246672,0.175828,60288.0,60287.0,0.002]
[1724938246970,0.592914,60288.0,60287.0,0.002]
[1724938247474,0.592914,60288.0,60274.0,0.0624]
[1724938247475,0.082933,60274.0,60266.0,0.14156]
[1724938247773,0.082935,60273.0,60269.0,0.08294]
[1724938248072,0.3598,60274.0,60273.0,0.082935]
[1724938248573,0.3598,60274.0,60273.0,0.083935]
[1724938248781,0.3598,60274.0,60273.0,0.001]
[1724938248969,0.442733,60274.0,60273.0,0.001]
[1724938249274,0.081938,60271.0,60267.0,0.00024894]
[1724938249468,0.3598,60274.0,60268.0,0.082941]
[1724938250162,0.942733,60274.0,60273.0,0.002]
[1724938250475,0.952733,60274.0,60273.0,0.002]
[1724938251172,0.952733,60274.0,60273.0,0.001]
[1724938251173,0.8698,60274.0,60273.0,0.001]
[1724938251376,0.011,60274.0,60273.0,0.001]
[1724938251672,0.013,60274.0,60273.0,0.082935]
[1724938252065,0.013,60274.0,60273.0,0.580655]
[1724938252267,0.011,60274.0,60273.0,0.082935]
[1724938252462,0.013,60274.0,60273.0,0.083935]
[1724938252863,0.011,60274.0,60273.0,0.082935]
[1724938253063,0.013,60274.0,60273.0,0.084935]
[1724938253471,0.00024894,60280.0,60279.0,0.082926]
[1724938253668,0.0039,60291.0,60290.0,0.082911]
[1724938253866,0.5,60302.0,60290.0,0.082911]
[1724938253867,0.0039,60302.0,60290.0,0.8624]
[1724938254064,0.082896,60302.0,60294.0,0.082906]
[1724938254467,0.3608,60303.0,60290.0,0.86328]